bitfinex/quotes_SOLUSD_20250626
["timestamp","ask_amount","ask_price","bid_price","bid_amount"]
[1750941858122,5.20438727,143.64,143.6,18.64964886]
[1750941858342,5.20438727,143.63,143.6,18.64964886]
[1750941858529,5.20438727,143.62,143.6,18.64964886]
[1750941858735,0.04,143.65,143.6,18.64964886]
[1750941859048,5.20376006,143.64,143.6,18.64964886]
[1750941859349,5.20376006,143.63,143.6,18.64964886]
[1750941859547,5.20376006,143.62,143.6,18.64964886]
[1750941859747,0.04,143.65,143.6,18.64964886]
[1750941859946,5.20338311,143.64,143.6,18.64964886]
[1750941860128,5.20338311,143.63,143.6,18.64964886]
[1750941860328,5.20338311,143.62,143.6,18.64964886]
[1750941860532,0.04,143.65,143.6,18.64964886]
[1750941860844,5.20284736,143.64,143.6,18.64964886]
[1750941861044,5.20284736,143.63,143.6,18.64964886]
[1750941861250,5.20284736,143.62,143.6,18.64964886]
[1750941861447,0.04,143.65,143.6,18.64964886]
[1750941861632,5.20251932,143.64,143.6,18.64964886]
[1750941861822,5.20251932,143.63,143.6,18.64964886]
[1750941862023,0.04,143.65,143.6,25.61336002]
[1750941862248,5.20183118,143.64,143.6,25.61336002]
[1750941862551,5.20183118,143.63,143.6,25.61336002]
[1750941862733,0.04,143.65,143.6,25.61336002]
[1750941862932,5.20191221,143.64,143.6,25.61336002]
[1750941863142,5.20191221,143.63,143.6,25.61336002]
[1750941863342,5.20191221,143.64,143.6,25.61336002]
[1750941863539,5.20191221,143.63,143.6,25.61336002]
[1750941863740,5.20191221,143.64,143.6,25.61336002]
[1750941863940,5.20191221,143.63,143.6,25.61336002]
[1750941864135,5.20191221,143.64,143.6,25.61336002]
[1750941864341,5.20191221,143.63,143.6,25.61336002]
[1750941864540,5.20191221,143.64,143.6,25.61336002]
[1750941864746,0.04,143.65,143.6,25.61336002]
[1750941864948,5.2004141,143.64,143.6,25.61336002]
[1750941865152,5.2004141,143.63,143.6,25.61336002]
[1750941865455,5.2004141,143.64,143.6,25.61336002]
[1750941865648,5.2004141,143.63,143.6,25.61336002]
[1750941865952,5.2004141,143.64,143.6,25.61336002]
[1750941866156,5.2004141,143.63,143.6,25.61336002]
[1750941866455,5.2004141,143.64,143.6,25.61336002]
[1750941866760,5.2004141,143.63,143.6,18.64964886]
[1750941867260,5.2004141,143.64,143.6,18.64964886]
[1750941867452,5.2004141,143.63,143.6,18.64964886]
[1750941867652,5.2004141,143.64,143.6,18.64964886]
[1750941867954,5.2004141,143.63,143.6,18.64964886]
[1750941868146,5.2004141,143.64,143.6,18.64964886]
[1750941868349,5.2004141,143.63,143.6,18.64964886]
[1750941868541,5.2004141,143.64,143.6,18.64964886]
[1750941868734,5.2004141,143.63,143.6,18.64964886]
[1750941868932,5.2004141,143.64,143.6,18.64964886]
[1750941869135,5.2004141,143.63,143.6,18.64964886]
[1750941869336,5.2004141,143.64,143.6,18.64964886]
[1750941869548,5.2004141,143.63,143.6,18.64964886]
[1750941869734,5.2004141,143.64,143.6,18.64964886]
[1750941869934,5.2004141,143.63,143.6,18.64964886]
[1750941870135,5.2004141,143.64,143.6,18.64964886]
[1750941870359,5.2004141,143.63,143.6,18.64964886]
[1750941870653,5.2004141,143.64,143.6,18.64964886]
[1750941870854,5.2004141,143.63,143.6,18.64964886]
[1750941871155,5.2004141,143.64,143.6,18.64964886]
[1750941871343,5.2004141,143.63,143.6,18.64964886]
[1750941871543,5.2004141,143.64,143.6,18.64964886]
[1750941871759,5.2004141,143.63,143.6,18.64964886]
[1750941871934,5.2004141,143.64,143.6,18.64964886]
[1750941872130,5.2004141,143.63,143.6,18.64964886]
[1750941872752,5.2004141,143.64,143.6,18.64964886]
[1750941877454,5.2004141,143.64,143.59,8.57476871]
[1750941877455,5.2004141,143.63,143.59,1.6107]
[1750941877657,5.2004141,143.62,143.57,13.0543]
[1750941877859,0.04,143.65,143.57,13.0543]
[1750941877860,6.96252827,143.63,143.57,13.0543]
[1750941878159,5.2004141,143.62,143.57,13.0543]
[1750941878361,5.2004141,143.62,143.57,6.52]
[1750941880161,5.2004141,143.61,143.57,6.52]
[1750941880467,5.2004141,143.6,143.57,6.52]
[1750941880639,5.2004141,143.62,143.57,6.52]
[1750941880840,5.2004141,143.61,143.57,6.52]
[1750941881041,5.2004141,143.6,143.57,6.52]
[1750941881366,5.2004141,143.62,143.57,6.52]
[1750941881561,5.2004141,143.61,143.57,6.52]
[1750941881768,5.2004141,143.62,143.57,6.52]
[1750941881947,5.2004141,143.61,143.57,6.52]
[1750941882148,5.2004141,143.62,143.57,6.52]
[1750941882350,5.2004141,143.61,143.57,6.52]
[1750941882549,5.2004141,143.62,143.57,6.52]
[1750941882765,5.2004141,143.61,143.57,6.52]
[1750941882966,5.2004141,143.62,143.57,6.52]
[1750941883163,5.2004141,143.61,143.57,6.52]
[1750941883470,5.2004141,143.6,143.57,13.48523817]
[1750941883655,5.2004141,143.62,143.57,13.48523817]
[1750941883855,5.2004141,143.61,143.57,13.48523817]
[1750941884050,5.2004141,143.6,143.57,13.48523817]
[1750941884250,5.2004141,143.62,143.57,13.48523817]
[1750941884462,5.2004141,143.61,143.57,13.48523817]
[1750941884761,5.2004141,143.6,143.57,6.52]
[1750941884957,5.2004141,143.62,143.57,6.52]
[1750941885145,5.2004141,143.61,143.57,6.52]
[1750941885347,5.2004141,143.6,143.57,6.52]
[1750941885549,5.2004141,143.62,143.57,6.52]
[1750941885850,5.2004141,143.61,143.57,6.52]
[1750941886060,5.2004141,143.6,143.57,6.52]
[1750941886268,5.2004141,143.62,143.57,6.52]
[1750941886457,5.2004141,143.61,143.57,6.52]
[1750941886665,5.2004141,143.6,143.57,6.52]
[1750941886972,5.2004141,143.62,143.57,6.52]
[1750941887263,5.2004141,143.61,143.57,6.52]
[1750941887475,5.2004141,143.6,143.57,6.52]
[1750941887652,5.2004141,143.62,143.58,18.64964886]
[1750941887970,5.2004141,143.61,143.58,18.64964886]
[1750941888273,5.2004141,143.6,143.58,18.64964886]
[1750941888570,3.62185305,143.63,143.58,18.64964886]
[1750941888751,5.20094364,143.62,143.58,18.64964886]
[1750941888952,5.20094364,143.61,143.58,18.64964886]
[1750941889151,5.20094364,143.6,143.58,18.64964886]
[1750941889471,3.62185305,143.63,143.58,18.64964886]
[1750941889670,5.20197574,143.62,143.58,18.64964886]
[1750941889968,5.20197574,143.61,143.58,18.64964886]
[1750941890169,5.20197574,143.6,143.58,18.64964886]
[1750941890369,3.62185305,143.63,143.58,18.64964886]
[1750941890565,5.20196062,143.62,143.58,18.64964886]
[1750941890751,5.20196062,143.61,143.58,18.64964886]
[1750941890953,5.20196062,143.6,143.58,18.64964886]
[1750941891165,3.62185305,143.63,143.58,18.64964886]
[1750941891366,5.201687,143.62,143.58,18.64964886]
[1750941891563,5.201687,143.61,143.58,18.64964886]
[1750941891774,5.201687,143.6,143.58,18.64964886]
[1750941891954,5.201687,143.59,143.58,18.64964886]
[1750941892267,5.201687,143.62,143.58,18.64964886]
[1750941892571,5.201687,143.61,143.58,18.64964886]
[1750941892768,5.201687,143.6,143.58,18.64964886]
[1750941893071,5.201687,143.59,143.58,18.64964886]
[1750941893371,5.201687,143.62,143.58,18.64964886]
[1750941893573,5.201687,143.61,143.58,18.64964886]
[1750941893756,5.201687,143.6,143.58,18.64964886]
[1750941893952,5.201687,143.59,143.58,18.64964886]
[1750941894252,5.201687,143.62,143.58,18.64964886]
[1750941894451,5.201687,143.61,143.58,18.64964886]
[1750941894663,5.201687,143.6,143.58,18.64964886]
[1750941894866,5.201687,143.59,143.58,18.64964886]
[1750941895072,17.0625236,143.63,143.58,18.64964886]
[1750941895073,5.201687,143.62,143.58,18.64964886]
[1750941895277,5.201687,143.61,143.58,18.64964886]
[1750941895463,5.201687,143.6,143.58,18.64964886]
[1750941895660,5.201687,143.59,143.58,18.64964886]
[1750941897171,5.201687,143.62,143.58,18.64964886]
[1750941897371,5.201687,143.61,143.58,18.64964886]
[1750941897674,5.201687,143.6,143.58,18.64964886]
[1750941897871,5.201687,143.59,143.58,18.64964886]
[1750941898070,5.201687,143.62,143.58,18.64964886]
[1750941898249,5.201687,143.61,143.58,18.64964886]
[1750941898453,5.201687,143.6,143.58,18.64964886]
[1750941898665,5.201687,143.59,143.57,6.52]
[1750941898869,5.201687,143.58,143.57,25.16964886]
[1750941899078,5.201687,143.61,143.57,25.16964886]
[1750941899273,5.201687,143.6,143.57,25.16964886]
[1750941899576,5.201687,143.59,143.57,25.16964886]
[1750941899758,5.201687,143.58,143.57,25.16964886]
[1750941899958,5.201687,143.61,143.57,25.16964886]
[1750941900178,5.201687,143.6,143.57,25.16964886]
[1750941900379,5.201687,143.59,143.57,25.16964886]
[1750941900574,5.201687,143.58,143.57,25.16964886]
[1750941900875,5.201687,143.61,143.57,25.16964886]
[1750941901058,5.201687,143.6,143.58,18.64964886]
[1750941901259,5.201687,143.59,143.58,18.64964886]
[1750941901460,5.201687,143.61,143.58,18.64964886]
[1750941901777,8.67777779,143.65,143.59,20.29334886]
[1750941901778,6.51833334,143.65,143.59,20.29334886]
[1750941901982,5.19652261,143.64,143.59,20.29334886]
[1750941902168,5.19652261,143.63,143.59,20.29334886]
[1750941902357,5.19652261,143.62,143.59,20.29334886]
[1750941902557,5.19652261,143.61,143.59,20.29334886]
[1750941902757,5.19652261,143.64,143.59,20.29334886]
[1750941902976,5.19652261,143.63,143.59,20.29334886]
[1750941903157,5.19652261,143.62,143.59,20.29334886]
[1750941903359,5.19652261,143.64,143.59,27.2575506]
[1750941903558,5.19652261,143.63,143.59,27.2575506]
[1750941903760,3.66212755,143.65,143.59,20.29334886]
[1750941903980,5.19754226,143.64,143.59,20.29334886]
[1750941904168,5.19754226,143.63,143.59,20.29334886]
[1750941904373,5.19754226,143.62,143.59,20.29334886]
[1750941904660,5.19754226,143.61,143.59,20.29334886]
[1750941904861,5.19754226,143.64,143.59,20.29334886]
[1750941905067,5.19754226,143.63,143.59,20.29334886]
[1750941905268,5.19754226,143.62,143.59,20.29334886]
[1750941905478,5.19754226,143.61,143.59,20.29334886]
[1750941905673,5.19754226,143.64,143.59,20.29334886]
[1750941905876,5.19754226,143.63,143.59,20.29334886]
[1750941906174,5.19754226,143.62,143.59,20.29334886]
[1750941906377,5.19754226,143.61,143.59,20.29334886]
[1750941906577,13.4402313,143.64,143.59,20.29334886]
[1750941906763,5.19880545,143.63,143.59,20.29334886]
[1750941906963,5.19880545,143.62,143.59,20.29334886]
[1750941907178,5.19880545,143.61,143.59,20.29334886]
[1750941907376,13.4402313,143.64,143.59,20.29334886]
[1750941907575,5.19904781,143.63,143.59,20.29334886]
[1750941907777,5.19904781,143.62,143.59,20.29334886]
[1750941907982,5.19904781,143.61,143.59,20.29334886]
[1750941908196,6.47833334,143.64,143.59,20.29334886]
[1750941908409,5.19947986,143.63,143.59,20.29334886]
[1750941908572,5.19947986,143.62,143.59,20.29334886]
[1750941908892,5.19947986,143.61,143.59,20.29334886]
[1750941909095,5.19947986,143.64,143.59,20.29334886]
[1750941909265,5.19947986,143.63,143.59,20.29334886]
[1750941909465,5.19947986,143.62,143.59,20.29334886]
[1750941909663,5.19947986,143.61,143.59,20.29334886]
[1750941909866,5.19947986,143.64,143.59,20.29334886]
[1750941910170,5.19947986,143.63,143.59,20.29334886]
[1750941910369,5.19947986,143.62,143.59,20.29334886]
[1750941910565,5.19947986,143.61,143.59,20.29334886]
[1750941910793,17.10200903,143.65,143.59,20.29334886]
[1750941910975,5.20123004,143.64,143.59,20.29334886]
[1750941911291,5.20123004,143.63,143.59,20.29334886]
[1750941911489,17.10200903,143.65,143.59,20.29334886]
[1750941911490,5.20123004,143.62,143.59,20.29334886]
[1750941911682,5.20123004,143.61,143.59,20.29334886]
[1750941911882,17.10200903,143.65,143.59,20.29334886]
[1750941912066,5.20112774,143.64,143.59,20.29334886]
[1750941912268,5.20112774,143.63,143.59,20.29334886]
[1750941912586,5.20112774,143.62,143.59,20.29334886]
[1750941912792,5.20112774,143.61,143.59,1.6437]
[1750941912981,13.44020184,143.64,143.57,6.52]
[1750941912982,5.20112774,143.6,143.57,6.52]
[1750941913187,5.20112774,143.59,143.55,1.6031]
[1750941913386,5.20112774,143.58,143.55,1.6031]
[1750941913588,5.20112774,143.57,143.55,1.6031]
[1750941913786,5.20112774,143.6,143.55,1.6031]
[1750941913989,5.20112774,143.59,143.55,1.6031]
[1750941914192,5.20112774,143.58,143.55,1.6031]
[1750941914383,5.20112774,143.57,143.55,1.6031]
[1750941914583,13.44185455,143.61,143.55,1.6031]
[1750941914879,5.19996091,143.6,143.55,1.6031]
[1750941915094,5.19996091,143.59,143.55,1.6031]
[1750941915397,5.19996091,143.58,143.55,1.6031]
[1750941915582,5.19996091,143.57,143.55,1.6031]
[1750941915773,13.44185455,143.61,143.55,1.6031]
[1750941915974,5.19961025,143.6,143.55,1.6031]
[1750941916174,5.19961025,143.59,143.55,1.6031]
[1750941916369,5.19961025,143.58,143.55,1.6031]
[1750941916586,5.19961025,143.57,143.55,1.6031]
[1750941916791,5.19961025,143.56,143.55,1.6031]
[1750941917103,5.19961025,143.59,143.55,1.6031]
[1750941917299,5.19961025,143.58,143.55,1.6031]
[1750941917603,5.19961025,143.57,143.55,1.6031]
[1750941917772,5.19961025,143.56,143.55,1.6031]
[1750941917971,5.19961025,143.59,143.55,1.6031]
[1750941918305,5.19961025,143.58,143.55,1.6031]
[1750941918600,5.19961025,143.57,143.55,1.6031]
[1750941918897,5.19961025,143.56,143.55,1.6031]
[1750941919095,5.19961025,143.58,143.54,0.02]
[1750941919292,5.19961025,143.57,143.54,0.02]
[1750941919496,5.19961025,143.56,143.54,0.02]
[1750941919692,5.19961025,143.55,143.54,0.02]
[1750941920108,12.16510893,143.57,143.54,0.02]
[1750941920281,11.82010516,143.56,143.54,0.02]
[1750941920484,5.34177182,143.55,143.54,0.02]
[1750941920696,5.19961025,143.55,143.54,0.02]
[1750941923586,5.19961025,143.57,143.54,0.02]
[1750941923782,5.19961025,143.56,143.54,0.02]
[1750941923993,8.8281228,143.58,143.54,0.02]
[1750941924207,5.19961025,143.57,143.54,0.02]
[1750941924410,5.19961025,143.56,143.54,0.02]
[1750941924584,5.19961025,143.57,143.54,0.02]
[1750941924796,5.19961025,143.56,143.54,0.02]
[1750941925102,5.19961025,143.57,143.54,0.02]
[1750941925404,5.19961025,143.56,143.54,0.02]
[1750941925598,5.19961025,143.55,143.54,0.02]
[1750941925796,0.14216157,143.55,143.54,0.02]
[1750941926003,5.34177182,143.55,143.54,0.02]
[1750941926303,36.06837543,143.55,143.54,0.02]
[1750941926507,47.74631902,143.55,143.54,0.02]
[1750941929694,41.26798568,143.55,143.54,0.02]
[1750941930317,41.12582411,143.55,143.54,0.02]
[1750941930616,41.26798568,143.55,143.54,0.02]
[1750941931316,12.30798568,143.55,143.54,0.02]
[1750941931504,36.06837543,143.55,143.54,0.02]
[1750941931903,12.30798568,143.55,143.54,0.02]
[1750941932100,29.10216157,143.55,143.54,0.02]
[1750941932307,28.96,143.55,143.54,0.02]
[1750941932613,5.19961025,143.55,143.54,0.02]
[1750941933015,35.92594595,143.56,143.54,0.02]
[1750941933215,5.19961025,143.55,143.54,0.02]
[1750941933899,12.16582411,143.55,143.54,0.02]
[1750941934216,5.19961025,143.55,143.54,0.02]
[1750941934728,3.77067412,143.58,143.54,0.02]
[1750941934729,3.62851255,143.58,143.54,0.02]
[1750941935194,8.8281228,143.58,143.54,0.02]
[1750941935394,3.62851255,143.58,143.54,0.02]
[1750941937729,3.62851255,143.58,143.54,18.66964886]
[1750941938614,10.59335531,143.58,143.54,18.66964886]
[1750941939294,10.59335531,143.58,143.54,0.02]
[1750941939829,0.14216157,143.57,143.54,0.02]
[1750941940005,0.14216157,143.55,143.54,0.02]
[1750941941312,28.96,143.56,143.54,0.02]
[1750941941514,35.92574522,143.56,143.54,0.02]
[1750941941930,28.96,143.56,143.54,0.02]
[1750941942429,3.62851255,143.58,143.55,1.5309]
[1750941942600,41.10202175,143.62,143.55,1.5309]
[1750941942799,3.62734492,143.6,143.55,1.5309]
[1750941943622,10.59113487,143.6,143.55,1.5309]
[1750941943851,3.62734492,143.6,143.55,1.5309]
[1750941945303,10.59115963,143.6,143.55,1.5309]
[1750941947132,15.77036284,143.6,143.55,1.5309]
[1750941949150,12.14379255,143.59,143.55,1.5309]
[1750941950438,0.14216157,143.58,143.55,1.5309]
[1750941951111,12.28649797,143.58,143.55,1.5309]
[1750941951331,7.10729476,143.58,143.55,1.5309]
[1750941951512,12.28649797,143.58,143.55,1.5309]
[1750941951713,7.10729476,143.58,143.55,1.5309]
[1750941951921,12.28649797,143.58,143.55,1.5309]
[1750941952124,7.10729476,143.58,143.55,1.5309]
[1750941952423,12.1443364,143.58,143.55,1.5309]
[1750941952724,6.96513319,143.58,143.55,1.5309]
[1750941952927,12.1443364,143.58,143.55,1.5309]
[1750941953131,6.96513319,143.58,143.55,1.5309]
[1750941953426,0.14216157,143.57,143.55,1.5309]
[1750941953634,5.17920321,143.56,143.54,0.02]
[1750941956109,5.17920321,143.55,143.54,0.02]
[1750941956308,5.17920321,143.56,143.54,0.02]
[1750941956512,5.17920321,143.55,143.54,0.02]
[1750941956714,5.17920321,143.56,143.54,0.02]
[1750941956912,5.17920321,143.55,143.54,0.02]
[1750941957219,12.14497149,143.56,143.54,0.02]
[1750941957546,12.14541707,143.55,143.54,0.02]
[1750941957710,12.28757864,143.55,143.52,0.02]
[1750941958042,6.63748067,143.53,143.52,0.02]
[1750941958240,11.81668388,143.53,143.52,0.02]
[1750941959216,5.32136478,143.53,143.52,0.02]
[1750941959435,12.28854934,143.53,143.52,0.02]
[1750941960639,18.78158634,143.53,143.52,0.02]
[1750941961322,41.06638777,143.53,143.52,0.02]
[1750941961835,41.20854934,143.53,143.52,0.02]
[1750941963115,44.83094139,143.53,143.52,0.02]
[1750941966442,51.31758522,143.53,143.52,0.02]
[1750941967041,44.83094139,143.53,143.52,0.02]
[1750941969337,47.62043839,143.53,143.52,0.02]
[1750941970050,54.10708222,143.53,143.52,0.02]
[1750941975226,47.62043839,143.53,143.52,0.02]
[1750941975629,54.10708222,143.53,143.52,0.02]
[1750941978147,47.62043839,143.53,143.52,0.02]
[1750941981050,72.75673108,143.53,143.52,0.02]
[1750941981248,0.14216157,143.52,143.51,0.02]
[1750941981460,11.79523343,143.52,143.51,0.02]
[1750941982153,12.28903479,143.52,143.51,0.02]
[1750941982353,18.7623795,143.52,143.51,0.02]
[1750941982953,12.28903479,143.52,143.51,0.02]
[1750941983247,30.93868365,143.52,143.51,0.02]
[1750941984041,39.57646144,143.52,143.51,0.02]
[1750941985662,30.93868365,143.52,143.51,0.02]
[1750941986163,59.83868365,143.52,143.51,0.02]
[1750941988234,30.93868365,143.52,143.51,0.02]
[1750941988535,59.83868365,143.52,143.51,0.02]
[1750941989157,30.93868365,143.52,143.51,0.02]
[1750941989353,59.83868365,143.52,143.51,0.02]
[1750941991247,69.83868365,143.52,143.51,0.02]
[1750941991447,0.14216157,143.5,143.48,0.02]
[1750941991657,52.8470714,143.5,143.48,0.02]
[1750941992333,56.48016189,143.5,143.48,0.02]
[1750941992542,66.239857,143.5,143.48,0.02]
[1750941994158,57.61415038,143.5,143.48,0.02]
[1750941994367,84.89018469,143.5,143.48,0.02]
[1750941994546,89.22046593,143.5,143.48,0.02]
[1750941994768,28.79181043,143.49,143.48,0.02]
[1750941994959,46.90743296,143.49,143.48,0.02]
[1750941995161,33.97101364,143.49,143.48,0.02]
[1750941996266,18.64964886,143.46,143.42,0.02]
[1750941996472,6.46359146,143.43,143.42,0.02]
[1750941996667,47.51483678,143.43,143.42,0.02]
[1750941997055,50.30667078,143.43,143.42,0.02]
[1750941998073,50.44883235,143.43,143.42,0.02]
[1750941998473,43.98524089,143.43,143.42,0.02]
[1750941999271,62.63488975,143.43,143.42,0.02]
[1750941999586,69.09348689,143.43,143.42,0.02]
[1750942000148,62.63488975,143.43,143.42,0.02]
[1750942000371,69.09218919,143.43,143.42,0.02]
[1750942001170,62.63488975,143.43,143.42,0.02]
[1750942001359,69.09132271,143.43,143.42,0.02]
[1750942002071,62.63488975,143.43,143.42,0.02]
[1750942002674,69.08928244,143.43,143.42,0.02]
[1750942006486,81.25301169,143.43,143.39,0.02]
[1750942006786,6.5882862,143.4,143.39,0.02]
[1750942006973,47.6409901,143.4,143.39,0.02]
[1750942007189,66.29063896,143.4,143.39,0.02]
[1750942007382,69.08344696,143.4,143.39,0.02]
[1750942007767,75.46344696,143.4,143.39,0.02]
[1750942007970,69.01732233,143.4,143.39,0.02]
[1750942008280,79.01732233,143.4,143.39,0.02]
[1750942008987,87.63544427,143.4,143.39,0.02]
[1750942010390,85.44820366,143.4,143.39,0.02]
[1750942011368,50.16820366,143.4,143.39,0.02]
[1750942011593,85.44820366,143.4,143.39,0.02]
[1750942012497,89.08197596,143.4,143.39,0.02]
[1750942012793,53.80197596,143.4,143.39,0.02]
[1750942013087,89.08197596,143.4,143.39,0.02]
[1750942014492,79.08197596,143.4,143.39,0.02]
[1750942014689,89.08197596,143.4,143.39,0.02]
[1750942015986,79.08197596,143.4,143.39,0.02]
[1750942017002,72.65109463,143.4,143.39,0.02]
[1750942017398,18.5792842,143.4,143.39,0.02]
[1750942017701,42.44224256,143.4,143.39,0.02]
[1750942017874,47.62144577,143.4,143.39,0.02]
[1750942018687,18.72144577,143.4,143.39,0.02]
[1750942018890,42.44224256,143.4,143.39,0.02]
[1750942019090,47.62144577,143.4,143.39,0.02]
[1750942019702,47.60144577,143.4,143.39,0.02]
[1750942019898,18.72144577,143.4,143.39,0.02]
[1750942020091,42.42224256,143.4,143.39,0.02]
[1750942020400,47.60144577,143.4,143.39,0.02]
[1750942027614,11.60578351,143.4,143.39,0.02]
[1750942027817,32.5137723,143.4,143.39,1.5404]
[1750942029915,37.69297551,143.4,143.39,1.5404]
[1750942031313,44.6664762,143.4,143.39,1.5404]
[1750942031730,47.4585052,143.4,143.39,1.5404]
[1750942032937,44.6664762,143.4,143.39,1.5404]
[1750942033229,37.69297551,143.4,143.39,1.5404]
[1750942035221,8.81297551,143.4,143.39,1.5404]
[1750942035422,32.4937723,143.4,143.39,1.5404]
[1750942035820,37.67297551,143.4,143.39,1.5404]
[1750942037943,44.6464762,143.4,143.39,1.5404]
[1750942038315,51.2195191,143.4,143.39,1.5404]
[1750942038539,44.10385684,143.4,143.39,1.5404]
[1750942038847,37.67297551,143.4,143.39,1.5404]
[1750942039230,32.4937723,143.4,143.39,1.5404]
[1750942039544,37.67297551,143.4,143.39,1.5404]
[1750942040242,28.86,143.4,143.39,1.5404]
[1750942040455,5.17920321,143.4,143.39,1.5404]
[1750942041735,10.06166868,143.43,143.4,6.4318]
[1750942041736,5.17920321,143.42,143.4,6.4318]
[1750942042230,5.17920321,143.44,143.4,6.4318]
[1750942042548,37.66945337,143.44,143.41,1.5036]
[1750942042744,5.17920321,143.43,143.41,1.5036]
[1750942044152,37.66945337,143.44,143.41,1.5036]
[1750942044533,8.80945337,143.44,143.41,1.5036]
[1750942044738,5.17920321,143.45,143.41,1.5036]
[1750942045451,12.15050803,143.45,143.41,1.5036]
[1750942046031,40.99050803,143.45,143.41,1.5036]
[1750942046234,5.17920321,143.44,143.41,1.5036]
[1750942049827,34.01920321,143.45,143.41,1.5036]
[1750942050954,40.99030696,143.45,143.41,1.5036]
[1750942051251,5.17920321,143.44,143.41,1.5036]
[1750942052035,12.15089237,143.44,143.41,1.5036]
[1750942054032,28.84,143.43,143.4,6.4318]
[1750942054345,34.01920321,143.43,143.4,6.4318]
[1750942056060,40.99133199,143.43,143.4,6.4318]
[1750942056358,35.81212878,143.43,143.4,6.4318]
[1750942056733,28.84,143.43,143.4,6.4318]
[1750942058034,35.81210017,143.43,143.4,6.4318]
[1750942058541,5.18165955,143.42,143.39,1.557]
[1750942058732,28.82,143.41,143.39,1.557]
[1750942059955,34.00165955,143.41,143.39,1.557]
[1750942060153,28.82,143.41,143.39,1.557]
[1750942060346,40.97491148,143.41,143.39,1.557]
[1750942060546,5.18165955,143.4,143.39,1.557]
[1750942062060,5.18165955,143.4,143.37,0.02]
[1750942062283,28.82,143.39,143.37,0.02]
[1750942062559,28.82,143.39,143.36,6.085]
[1750942062560,35.79445263,143.39,143.36,6.085]
[1750942062735,5.18165955,143.38,143.36,6.085]
[1750942065461,8.8131069,143.38,143.36,6.085]
[1750942066655,15.78767752,143.38,143.36,6.085]
[1750942067268,15.78767752,143.38,143.35,0.02]
[1750942067466,34.00165955,143.37,143.33,6.5138]
[1750942068751,6.97544642,143.36,143.33,6.5138]
[1750942068950,12.15710597,143.36,143.33,6.5138]
[1750942069367,5.18165955,143.36,143.33,6.5138]
[1750942069570,34.00165955,143.37,143.33,6.5138]
[1750942069965,40.9766257,143.37,143.33,6.5138]
[1750942070166,5.18165955,143.36,143.33,6.5138]
[1750942070767,5.18165955,143.37,143.35,1.5879]
[1750942070951,40.43254088,143.4,143.35,1.5879]
[1750942071278,5.18165955,143.39,143.35,1.5879]
[1750942082286,37.63273052,143.4,143.35,1.5879]
[1750942083483,44.60629463,143.4,143.35,1.5879]
[1750942083679,5.18165955,143.39,143.35,1.5879]
[1750942084088,12.15570426,143.39,143.35,1.5879]
[1750942085267,5.18165955,143.38,143.35,1.5879]
[1750942085466,5.18165955,143.39,143.35,1.5879]
[1750942087792,37.63273052,143.4,143.35,1.5879]
[1750942091375,5.18165955,143.39,143.35,1.5879]
[1750942092269,3.62884004,143.38,143.35,1.5879]
[1750942092478,10.60379579,143.38,143.33,6.5138]
[1750942092679,15.78545534,143.38,143.33,6.5138]
[1750942092894,10.60379579,143.38,143.33,6.5138]
[1750942093083,15.78545534,143.38,143.33,6.5138]
[1750942093270,5.18165955,143.37,143.33,6.5138]
[1750942093470,5.18165955,143.36,143.33,6.5138]
[1750942094199,5.18165955,143.36,143.33,0.02]
[1750942094381,5.18165955,143.35,143.33,0.02]
[1750942094585,12.15753197,143.36,143.33,0.02]
[1750942094895,5.18165955,143.35,143.33,0.02]
[1750942097500,12.15764691,143.35,143.33,0.02]
[1750942097796,6.97598736,143.35,143.33,0.02]
[1750942098000,12.15764691,143.35,143.33,0.02]
[1750942098203,6.97598736,143.35,143.33,0.02]
[1750942098499,12.15764691,143.35,143.33,0.02]
[1750942098687,6.97598736,143.35,143.33,0.02]
[1750942098886,12.15764691,143.35,143.33,0.02]
[1750942099195,6.97598736,143.35,143.33,0.02]
[1750942099403,12.15764691,143.35,143.33,0.02]
[1750942099587,6.97598736,143.35,143.33,0.02]
[1750942099784,12.15764691,143.35,143.33,0.02]
[1750942100092,6.97598736,143.35,143.33,0.02]